Cogmind - Beta 9.6 @@@ ROGUE MODE // 2020.07.21 @ 22:39:39 Player: Mr.Manatee Result: Destroyed by Y-54 Guardian with Gatling Laser Performance ------------- Evolutions (4) 2000 Regions Visited (7) 1400 Robots Destroyed (132) 660 Value Destroyed (6074) 6074 Prototype IDs (10) 200 Alien Tech Used (0) 0 Bonus (2841) 2841 TOTAL SCORE: 13175 Bonus ------- High Alert Combat Kills 1621 Follower Combat Kills 646 Entered Garrisons 200 Used RIF Installer 500 Friendly Fire -126 Cogmind --------- Core Integrity 0/850 Matter 163/300 Energy 99/100 System Corruption 48% Temperature Cool (12) Movement Core (200) Ox3 Location -6/Lower Caves Parts ------- > --- POWER (1) -------- (None) > --- PROPULSION (4) --- (None) > --- UTILITY (6) ------ Improved Heat Sink > --- WEAPON (4) ------- Heavy Gauss Cannon > --- INVENTORY (4) ---- (None) Peak State ------------ > --- POWER ------------ Fission Core > --- PROPULSION ------- Improved Medium Treads Improved Medium Treads Improved Medium Treads Improved Medium Treads > --- UTILITY ---------- Power Amplifier Advanced Heat Sink Hacking Suite Improved Hacking Suite System Shield Relay Coupler [Sentry] > --- WEAPON ----------- Force Rifle Proton Cannon Heavy Plasma Cannon Improved Heavy Machine Gun > --- INVENTORY -------- Heavy Deuterium Engine Flexi-carbon Leg Advanced Heat Sink Advanced Heat Sink [Rating: 73] Favorites ----------- Power Ion Engine Engine Ion Engine Power Core Fission Core Propulsion Carbon-fiber Leg Treads Armored Treads Leg Carbon-fiber Leg Flight Unit VTOL Module Utility Hardened Medium Armor Plating Device Advanced Heat Sink Storage High-capacity Storage Unit Processor Enhanced Optical Array Hackware System Shield Protection Hardened Medium Armor Plating Weapon Gauss Rifle Energy Gun Electrolaser Energy Cannon Proton Cannon Ballistic Gun Gauss Rifle Ballistic Cannon Assault Cannon Launcher Improved Grenade Launcher Special Weapon Remote Datajack Slashing Weapon Axe Build | -11 -10 -9 -8 -8 -7 -6 -6 ------- Run | Scr Mat Mat Mat Gar Fac Fac Low Slots Evolved 8 | . . 2 2 . 2 2 . Power . | . . . . . . . . Propulsion 2 | . . . 2 . . . . Utility 4 | . . 2 . . 1 1 . Weapon 2 | . . . . . 1 1 . Parts Attached 170 | 2 5 17 11 11 48 65 11 Power 16 | . 2 1 1 1 6 4 1 Engine 12 | . 2 1 1 1 3 3 1 Core 4 | . . . . . 3 1 . Reactor . | . . . . . . . . Propulsion 41 | . 2 4 3 3 10 15 4 Treads 15 | . . 4 3 3 . 5 . Leg 23 | . . . . . 9 10 4 Wheel . | . . . . . . . . Hover . | . . . . . . . . Flight 3 | . 2 . . . 1 . . Utility 59 | . 1 8 5 3 13 25 4 Device 25 | . . 1 1 1 7 13 2 Storage 2 | . . 1 1 . . . . Processor 6 | . 1 . . . 2 3 . Hackware 6 | . . . . . . 6 . Protection 20 | . . 6 3 2 4 3 2 Artifact . | . . . . . . . . Weapon 54 | 2 . 4 2 4 19 21 2 Energy Gun 17 | . . 2 . 2 6 7 . Energy Cannon 6 | . . . . . 2 4 . Ballistic Gun 15 | 2 . 2 . 1 2 8 . Ballistic Cannon 11 | . . . 1 1 7 . 2 Launcher 2 | . . . 1 . 1 . . Special Weapon 1 | . . . . . . 1 . Impact Weapon . | . . . . . . . . Slashing Weapon 2 | . . . . . 1 1 . Piercing Weapon . | . . . . . . . . Special Melee Weapon . | . . . . . . . . Unidentified Prototypes 5 | . . . . . 2 3 . Parts Lost 75 | . . . 3 7 19 28 18 Power 4 | . . . 1 . . 2 1 Propulsion 22 | . . . . 4 5 8 5 Utility 24 | . . . 2 2 5 7 8 Weapon 25 | . . . . 1 9 11 4 Highest Loss Streak 14 | . . . 3 6 12 14 7 Average Slot Usage (%) 80 | . 50 97 98 66 84 89 56 Engine 5 | . 3 11 8 9 4 1 5 Core 1 | . . . . . 1 3 . Treads 12 | . . 21 36 16 11 6 . Leg 8 | . . . . . 11 14 20 Device 10 | . . . 8 1 16 17 4 Storage 3 | . . 5 9 9 3 . . Processor 3 | . 12 5 . . 3 7 2 Hackware 3 | . . . . . . 10 4 Protection 10 | . . 31 18 15 9 1 10 Energy Gun 4 | . . 2 11 3 8 2 . Energy Cannon 1 | . . . . . 1 4 . Ballistic Gun 5 | . 28 18 . 1 3 8 . Ballistic Cannon 2 | . . . 2 3 2 3 3 Launcher 1 | . . . 3 6 . . . Slashing Weapon 1 | . . . . . 1 2 2 Naked Turns 64 | . . . . . . . 64 Heaviest Build 75 | 3 8 67 72 69 75 45 46 Greatest Support 120 | 3 10 44 88 88 63 120 71 Greatest Overweight (x) 22 | . . 22 . 2 17 1 1 Average Overweight (x) . | . . . . 1 . . . Largest Inventory Capacity 12 | 4 4 12 12 12 12 4 4 Average Capacity 7 | 4 4 7 12 12 8 4 4 Most Carried 12 | 2 3 12 10 12 12 4 4 Average Carried 6 | 1 2 5 7 10 8 3 3 Final Capacity 12 | 4 4 12 12 12 4 4 4 Final Carried 12 | 2 3 8 10 12 4 4 . Class Distribution -------------------- 37% | Mutant 23% | Scavenger-Mutant 11% | Scavenger-Tank 8% | Hacker-Gunner 6% | Commander-Mutant 6% | Scavenger-Gunner 3% | Scavenger-Bomber Dominant Class ---------------- Mutant | -10/Materials Mutant | -9/Materials Mutant | -8/Materials Mutant | -8/Garrison Scavenger-Tank | -7/Factory Scavenger-Mutant | -6/Factory Mutant | -6/Lower Caves Resources | -11 -10 -9 -8 -8 -7 -6 -6 ----------- Run | Scr Mat Mat Mat Gar Fac Fac Low Matter Collected 4052 | 220 14 282 115 626 767 1665 363 Remotely . | . . . . . . . . Salvage Created 5141 | . 44 349 349 436 1371 2164 428 Parts 256 | . 2 19 21 21 53 121 19 Haulers Intercepted 2 | . . . . . 1 1 . Recyclers Shooed 8 | . . . 1 . 2 5 . Parts Field Recycled . | . . . . . . . . Retrieved Matter . | . . . . . . . . Parts Self-Destructed 15 | . . . . . . . 15 Prevented 4 | . . . . . . . 4 Kills | -11 -10 -9 -8 -8 -7 -6 -6 ------- Run | Scr Mat Mat Mat Gar Fac Fac Low Combat Hostiles Destroyed 108 | . 1 10 15 15 23 32 12 Melee 4 | . . . . 1 . 1 2 Guns 49 | . 1 10 1 2 14 20 1 Cannons 26 | . . . 1 1 5 11 8 AOE 28 | . . . 12 11 4 . 1 Classes Destroyed 15 | . 1 3 3 1 4 3 . Worker 8 | . . . 2 . 3 3 . Builder 5 | . . . 1 . 1 3 . Hauler 2 | . . . . . 1 1 . Recycler 5 | . . . . . 2 3 . Operator 1 | . . . . . . 1 . Watcher 2 | . . . . . 1 1 . Swarmer 25 | . . 4 6 4 2 4 5 Grunt 37 | . 1 4 4 4 10 11 3 Brawler 4 | . . 1 . . 1 1 1 Duelist 3 | . . . . 1 1 1 . Sentry 20 | . . 1 4 7 3 5 . Demolisher 2 | . . . . . . 2 . Hunter 6 | . . . 1 . 1 4 . Programmer 7 | . . . . . 5 2 . Assembled 2 | . . . . . . 2 . Savage 3 | . . . . . . . 3 Best Kill Streak 10 | . 1 4 7 10 8 8 4 Combat Bots Only 10 | . 1 4 6 10 7 5 4 Max Kills in Single Turn 3 | . 1 1 3 3 2 2 1 Gunslinging . | . . . . . . . . Exploded 3 | . . . 3 3 1 . 1 Melee 1 | . . . . 1 . 1 1 Uniques/NPCs Destroyed . | . . . . . . . . Combat | -11 -10 -9 -8 -8 -7 -6 -6 -------- Run | Scr Mat Mat Mat Gar Fac Fac Low Damage Taken 12721 | . 70 399 1112 1014 3363 4357 2406 Core 1484 | . 16 31 49 119 417 304 548 Absorbed by Shields . | . . . . . . . . Core Remaining (%) 78 | 100 93 92 . 69 40 . . Volleys Fired 408 | . 1 33 43 46 92 147 46 Largest 4 | . 2 2 2 2 3 4 3 Hottest 260 | . 40 43 126 80 185 260 101 Shots Fired 768 | . 2 66 63 48 209 324 56 Gun 520 | . 2 66 38 21 151 223 19 Cannon 211 | . . . 12 12 53 97 37 Launcher 33 | . . . 13 15 5 . . Special 4 | . . . . . . 4 . Kinetic 483 | . 2 66 12 13 87 254 49 Thermal 144 | . . . 38 19 57 30 . Explosive 33 | . . . 13 15 5 . . Electromagnetic 104 | . . . . 1 60 36 7 Robot Hit Streak 29 | . 1 14 15 29 11 21 14 Robot Miss Streak 6 | . 1 4 1 1 6 6 3 Penetration Max 1 | . . . . . 1 1 1 Secondary Targets 7 | . 1 . . . . 4 2 Max Gunslinging Chain 1 | . 1 . . . . 1 1 Shots Hit Robots 541 | . 1 49 45 30 143 226 47 Core Hits 276 | . 1 19 27 31 73 103 22 Critical Hits 11 | . . . . 1 2 7 1 Critical Kills 6 | . . . . . 1 5 . Critical Parts Destroyed 4 | . . . . 1 . 2 1 Melee Attacks 13 | . . . . . 2 5 6 Impact . | . . . . . . . . Slashing 13 | . . . . . 2 5 6 Piercing . | . . . . . . . . Sneak Attacks . | . . . . . . . . Combat Hostiles . | . . . . . . . . Follow-up Attacks . | . . . . . . . . Damage Inflicted 14562 | . 15 553 2165 1274 3612 5239 1704 Guns 6928 | . 15 553 524 287 2074 3215 260 Cannons 4116 | . . . 157 119 719 1900 1221 Explosions 3134 | . . . 1484 838 700 . 112 Melee 268 | . . . . . 64 95 109 Ramming 116 | . . . . 30 55 29 2 Kinetic 7326 | . 15 553 157 119 1387 3731 1364 Thermal 2816 | . . . 524 287 1217 676 112 Explosive 2746 | . . . 1484 838 424 . . Electromagnetic 1290 | . . . . . 465 708 117 Impact . | . . . . . . . . Slashing 268 | . . . . . 64 95 109 Piercing . | . . . . . . . . Highest Corruption 48 | . . . . . 12 22 48 Average Corruption 20 | . . . . . 8 20 37 Corruption Purged . | . . . . . . . . Effects 135 | . . . . . 30 44 61 Message Errors 21 | . . . . . 9 3 9 Matter Fused 17 | . . . . . 7 3 7 Heat Flow Errors 9 | . . . . . 2 4 3 Energy Discharges 10 | . . . . . 3 3 4 Parts Rejected 1 | . . . . . 1 . . Data Loss (minor) 8 | . . . . . 3 2 3 Data Loss (major) 1 | . . . . . . . 1 Misfires 2 | . . . . . . 1 1 Alerts 1 | . . . . . . 1 . Misdirections 21 | . . . . . 2 6 13 Targeting Errors 37 | . . . . . 2 18 17 Weapon Failures 7 | . . . . . 1 3 3 Overload Shots . | . . . . . . . . Overflow Damage 412 | . . . 46 54 81 115 116 Projectiles 262 | . . . . . 33 113 116 Explosions 148 | . . . 46 54 48 . . Melee 2 | . . . . . . 2 . Knockbacks 25 | . . . 1 . 6 9 9 Impact . | . . . . . . . . Kinetic 21 | . . . 1 . 6 8 6 Secondary 4 | . . . . . . 1 3 Self-Inflicted Damage 490 | . . . . 179 258 . 53 Shots 16 | . . . . 8 7 . 1 Rammed 13 | . . . . 1 12 . . Targets Rammed 21 | . . . . 2 15 3 1 Kicked 7 | . . . . . 3 3 1 Crushed 1 | . . . . 1 . . . Highest Temperature 539 | . . 58 386 265 539 372 251 Average Temperature 111 | . . 17 167 64 135 81 86 Received Heat Transfer 3001 | . 39 156 387 270 672 889 588 Effects 15 | . . . 1 1 10 3 . Shutdowns 3 | . . . 1 . 2 . . Energy Bleed 2 | . . . . 1 . 1 . Interference 4 | . . . . . 2 2 . Matter Decay 2 | . . . . . 2 . . Damage (minor) 2 | . . . . . 2 . . Damage (major) 2 | . . . . . 2 . . Siege Activations . | . . . . . . . . Robots Corrupted . | . . . . . . . . Combat Hostiles . | . . . . . . . . Parts Fried 5 | . . . . . 3 2 . Impact Corruptions 2 | . . . . . . . 2 Robots Melted 1 | . . . 1 . . . . Combat Hostiles 1 | . . . 1 . . . . Parts Melted 11 | . . . 3 . 8 . . Heat Transferred 5018 | . . . 1147 629 2046 1046 150 Parts Sabotaged . | . . . . . . . . Parts Stolen . | . . . . . . . . Parts Stripped . | . . . . . . . . Power Chain Reactions 3 | . . . . . 2 . 1 Missiles Intercepted . | . . . . . . . . Alert | -11 -10 -9 -8 -8 -7 -6 -6 ------- Run | Scr Mat Mat Mat Gar Fac Fac Low Peak Influence 1717 | . 81 228 535 1717 1275 1287 . Average Influence 784 | . 31 132 218 1119 1040 636 . Maximum Alert Level 5 | . . 1 2 5 4 4 . Low Security (%) 13 | 100 100 92 58 . . . . Level 1 2 | . . 7 15 3 . . . Level 2 28 | . . . 25 15 . 70 . Level 3 29 | . . . . 16 62 27 . Level 4 21 | . . . . 46 37 1 . Level 5 4 | . . . . 18 . . . High Security . | . . . . . . . . Max Security . | . . . . . . . . Squads Dispatched 28 | . 1 2 3 . 12 10 . Investigation 3 | . 1 1 . . . 1 . Extermination 4 | . . . . . 2 2 . Reinforcement 9 | . . 1 1 . 3 4 . Assault 6 | . . . . . 4 2 . Garrison 6 | . . . 2 . 3 1 . Intercept . | . . . . . . . . Construction Impeded 2 | . . . 1 . 1 . . Haulers Reinforced 2 | . . . . . 1 1 . Stealth | -11 -10 -9 -8 -8 -7 -6 -6 --------- Run | Scr Mat Mat Mat Gar Fac Fac Low Distress Signals 6 | . 2 . 3 . 1 . . Communications Jammed . | . . . . . . . . Distress Signals . | . . . . . . . . Times Spotted 238 | . 12 16 21 33 56 70 30 Peak Tracking Total 12 | . 8 5 7 12 6 8 12 Tactical Retreats 20 | . 1 . 1 2 6 6 4 Traps | -11 -10 -9 -8 -8 -7 -6 -6 ------- Run | Scr Mat Mat Mat Gar Fac Fac Low Traps Triggered 10 | . . . . 5 1 4 . Indirectly . | . . . . . . . . Trap Hack Attempts . | . . . . . . . . Triggered . | . . . . . . . . Disarmed . | . . . . . . . . Reprogrammed . | . . . . . . . . Reused . | . . . . . . . . Traps Extracted . | . . . . . . . . Installed . | . . . . . . . . Triggered . | . . . . . . . . Machines | -11 -10 -9 -8 -8 -7 -6 -6 ---------- Run | Scr Mat Mat Mat Gar Fac Fac Low Machines Disabled 20 | . . . 1 8 7 4 . Max in Single Turn 3 | . . . 1 2 3 1 . Garrison Access 1 | . . . . . . 1 . Garrison Relay 4 | . . . . 4 . . . Phase Generator 1 | . . . . 1 . . . Machines Sabotaged . | . . . . . . . . Garrisons Compromised . | . . . . . . . . Overloaded Fab Kills . | . . . . . . . . Fab Network Shutdowns 2 | . . . . . 1 1 . Hacking | -11 -10 -9 -8 -8 -7 -6 -6 --------- Run | Scr Mat Mat Mat Gar Fac Fac Low Machines Accessed 21 | . 2 4 2 . 5 8 . Terminals 12 | . 2 3 . . 3 4 . Fabricators 2 | . . . . . 1 1 . Repair Stations 2 | . . 1 . . . 1 . Recycling Units 2 | . . . . . 1 1 . Scanalyzers 2 | . . . 1 . . 1 . Garrison Access 1 | . . . 1 . . . . Total Hacks 56 | . 11 8 2 . 13 22 . Successful 29 | . 5 6 1 . 4 13 . Failed 27 | . 6 2 1 . 9 9 . Catastrophic 6 | . . . . . 3 3 . Database Lockouts . | . . . . . . . . Manual 31 | . 11 6 . . 6 8 . Terminals 38 | . 11 6 . . 9 12 . Fabricators 4 | . . . . . 2 2 . Repair Stations 7 | . . 2 . . . 5 . Recycling Units 3 | . . . . . 2 1 . Scanalyzers 3 | . . . 1 . . 2 . Garrison Access 1 | . . . 1 . . . . Terminal Hacks 11 | . 3 1 . . 2 5 . Record 1 | . . . . . . 1 . Part Schematic 2 | . . . . . . 2 . Prototype ID Bank 3 | . 3 . . . . . . Terminal Index 1 | . . . . . . 1 . Unreport Threat 3 | . . . . . 2 1 . Zone Layout 1 | . . 1 . . . . . Fabricator Hacks 3 | . . . . . 1 2 . Load Schematic 1 | . . . . . . 1 . Build 2 | . . . . . 1 1 . Repair Station Hacks 3 | . . 2 . . . 1 . Scan Component 2 | . . 1 . . . 1 . Repair 1 | . . 1 . . . . . Recycling Unit Hacks 2 | . . . . . 1 1 . Retrieve Components 2 | . . . . . 1 1 . Scanalyzer 2 | . . . . . . 2 . Insert Component 1 | . . . . . . 1 . Analyze 1 | . . . . . . 1 . Garrison Access Hacks 1 | . . . 1 . . . . Unlock Access 1 | . . . 1 . . . . Unauthorized Hacks 7 | . 2 3 . . . 2 . Terminals 7 | . 2 3 . . . 2 . Track 1 | . . 1 . . . . . Botnet 6 | . 2 2 . . . 2 . Fabricators . | . . . . . . . . Repair Stations . | . . . . . . . . Recycling Units . | . . . . . . . . Scanalyzers . | . . . . . . . . Garrison Access . | . . . . . . . . Data Cores Recovered 1 | . . . . . . 1 . Used . | . . . . . . . . Hacking Detections 18 | . 2 4 1 . 4 7 . Full Trace Events 3 | . 1 1 . . . 1 . Feedback Events . | . . . . . . . . Feedback Blocked . | . . . . . . . . Robot Schematics Acquired . | . . . . . . . . Robots Built . | . . . . . . . . Matter . | . . . . . . . . Time . | . . . . . . . . Total Robot Build Rating . | . . . . . . . . Part Schematics Acquired 3 | . . . . . . 3 . Parts Built 2 | . . . . . . 2 . Matter 424 | . . . . . 190 234 . Time 212 | . . . . . 95 117 . Total Part Build Rating 14 | . . . . . . 14 . Parts Repaired 1 | . . 1 . . . . . Time 26 | . . 26 . . . . . Parts Recycled . | . . . . . . . . Recycled Matter . | . . . . . . . . Retrieved Matter . | . . . . . . . . Retrieved Components 17 | . . . . . 7 10 . Parts Scanalyzed 1 | . . . . . . 1 . Part Schematics Acquired 1 | . . . . . . 1 . Parts Damaged . | . . . . . . . . Bothacking | -11 -10 -9 -8 -8 -7 -6 -6 ------------ Run | Scr Mat Mat Mat Gar Fac Fac Low Used RIF Installer 1 | . . . . 1 . . . Robots Hacked 1 | . . . . . . 1 . Non-combat . | . . . . . . . . Combat 1 | . . . . . . 1 . Robot Hacks Applied 1 | . . . . . . 1 . streamctrl_high 1 | . . . . . . 1 . Relay Couplers Released 18 | . . . . 14 3 1 . Machine Destruction 15 | . . . . 14 . 1 . Programmers 3 | . . . . . 3 . . Attached 2 | . . . . . . 2 . Robots Rewired 7 | . . . . 7 . . . Allies Hacked . | . . . . . . . . Hacks Repelled . | . . . . . . . . Allies | -11 -10 -9 -8 -8 -7 -6 -6 -------- Run | Scr Mat Mat Mat Gar Fac Fac Low Total Allies 8 | . . . . 7 . 1 . Largest Group 7 | . . . . 7 1 1 . Highest-Rated Group 166 | . . . . 166 38 47 . Highest-Rated Ally 47 | . . . . 38 38 47 . Total Orders 2 | . . . . 2 . . . STAY 1 | . . . . 1 . . . FOLLOW 1 | . . . . 1 . . . Ally Attacks 84 | . . . . 73 4 7 . Total Damage 1814 | . . . . 1534 63 217 . Kills 24 | . . . . 22 . 2 . Allies Corrupted . | . . . . . . . . Allies Melted . | . . . . . . . . Intel | -11 -10 -9 -8 -8 -7 -6 -6 ------- Run | Scr Mat Mat Mat Gar Fac Fac Low Robot Analysis Total . | . . . . . . . . Derelict Logs Recovered . | . . . . . . . . Drone Launches . | . . . . . . . . Drone Recoveries . | . . . . . . . . Exploration | -11 -10 -9 -8 -8 -7 -6 -6 ------------- Run | Scr Mat Mat Mat Gar Fac Fac Low Turns Passed 7191 | 22 90 625 312 1681 1692 2227 542 Spaces Moved 3819 | 34 161 245 123 710 952 1191 403 Core 331 | 34 135 2 . . 32 . 128 Treads 1734 | . . 240 123 710 374 287 . Legs 1594 | . . . . . 415 904 275 Wheels . | . . . . . . . . Hover . | . . . . . . . . Flight 160 | . 26 3 . . 131 . . Fastest Speed 37 | 50 37 37 145 145 40 120 50 Average Speed 139 | 50 47 178 145 186 133 135 101 Slowest Speed 1150 | 50 50 1150 145 210 900 160 160 Overloaded Moves . | . . . . . . . . Propulsion Burnouts . | . . . . . . . . Robots Hopped 6 | . 2 . . . 4 . . Cave-ins Triggered . | . . . . . . . . Exploration Rate (%) 33 | 3 28 23 14 94 24 34 50 Regions Visited 7 Branch Regions 1 Pre-discovered Areas . | . . . . . . . . Known Exits Taken 2 | . 1 . 1 . . . . Unknown Exits Taken 4 | 1 . 1 . . 1 1 . Scrap Searched . | . . . . . . . . Spaces Dug 10 | . . . . 10 . . . Terrain Destroyed 499 | . . . 92 221 146 27 13 Melee . | . . . . . . . . Projectile 47 | . . . 3 . 8 27 9 AOE 452 | . . . 89 221 138 . 4 Actions | -11 -10 -9 -8 -8 -7 -6 -6 --------- Run | Scr Mat Mat Mat Gar Fac Fac Low Total 5003 | 37 168 378 194 1019 1187 1547 473 Wait 351 | . . 53 10 147 41 100 . Move 3801 | 33 157 244 122 709 943 1190 403 Hop 5 | . 1 . . . 4 . . Pick Up 43 | 2 2 9 4 15 7 4 . Fast Attach 106 | 2 4 12 1 5 30 49 3 Attach 33 | . 1 1 7 4 6 8 6 Detach 24 | . 1 7 4 1 2 7 2 Swap 31 | . . 4 3 2 12 8 2 Drop 82 | . 1 15 . 11 25 26 4 Fire 408 | . 1 33 43 46 92 147 46 Melee 13 | . . . . . 2 5 6 Ram 7 | . . . . . 7 . . Kick 11 | . . . . . 7 3 1 Crush 3 | . . . . 2 1 . . Escape Stasis 10 | . . . . 10 . . . Rewire 75 | . . . . 67 8 . . Trap . | . . . . . . . . Miscellaneous . | . . . . . . . . Route ------- -11/Scrapyard -10/Materials (discovered 3 exits: *Mat / *Min x2) -9/Materials -8/Materials -8/Garrison (discovered 3 exits: *Fac x3) -7/Factory -6/Factory (discovered 2 exits: [*Fac] / [*Low]) -6/Lower Caves History --------- Turn | Location | Event 5 | -11/Scrapyard | Discovered new exit (range 15) 23 | -11/Scrapyard | Entered Materials 49 | -10/Materials | Discovered new exit (range 10) 54 | -10/Materials | Identified exit to Mines 91 | -10/Materials | Discovered new exit (range 16) 92 | -10/Materials | Discovered exit to Mines (range 8) 113 | -10/Materials | Identified exit to Materials 113 | -10/Materials | Entered another Materials area 113 | -9/Materials | Evolved 2 slots: Utility x2 310 | -9/Materials | Build established: Mutant 348 | -9/Materials | Repaired Assault Rifle 714 | -9/Materials | Discovered new exit (range 16) 738 | -9/Materials | Entered another Materials area 738 | -8/Materials | Evolved 2 slots: Propulsion x2 882 | -8/Materials | Garrison activated, responded to threat 982 | -8/Materials | Lost 3 parts (1p2u) 1049 | -8/Materials | Identified exit to Garrison 1050 | -8/Materials | Entered Garrison 1088 | -8/Garrison | Triggered checkpoint 1106 | -8/Garrison | Garrison Relay disabled 1142 | -8/Garrison | Destroyed 10 combat bots 1195 | -8/Garrison | Lost 6 parts (4n2u) 1369 | -8/Garrison | Phase Generator disabled 1526 | -8/Garrison | Triggered checkpoint 1573 | -8/Garrison | Build established: Commander-Mutant 1601 | -8/Garrison | Triggered checkpoint 1620 | -8/Garrison | Triggered checkpoint 1658 | -8/Garrison | Discovered new exit (range 14) 1695 | -8/Garrison | Installed Relay Interface Framework 2000 | -8/Garrison | Garrison Relay disabled 2075 | -8/Garrison | Build established: Mutant 2184 | -8/Garrison | Triggered checkpoint 2239 | -8/Garrison | Garrison Relay disabled 2314 | -8/Garrison | Discovered new exit (range 13) 2380 | -8/Garrison | Triggered checkpoint 2426 | -8/Garrison | Triggered checkpoint 2519 | -8/Garrison | Discovered new exit (range 12) 2578 | -8/Garrison | Triggered checkpoint 2643 | -8/Garrison | Garrison Relay disabled 2694 | -8/Garrison | Build established: Scavenger-Mutant 2731 | -8/Garrison | Entered Factory 2731 | -7/Factory | Accompanied by 1 ally 2731 | -7/Factory | Evolved 2 slots: Utility x1, Weapon x1 3131 | -7/Factory | First assault squad dispatched 3145 | -7/Factory | Build established: Scavenger-Tank 3574 | -7/Factory | Garrison activated, responded to threat 3634 | -7/Factory | Destroyed 7 combat bots 3651 | -7/Factory | Lost 12 parts (3n3u6w) 3836 | -7/Factory | Core integrity fell below 50% 3921 | -7/Factory | Build established: Mutant 4090 | -7/Factory | System corruption reached 10% 4122 | -7/Factory | Local fabrication network quarantined 4126 | -7/Factory | Lost 6 parts (2n2u2w) 4387 | -7/Factory | Build established: Scavenger-Mutant 4393 | -7/Factory | Discovered new exit (range 9) 4423 | -7/Factory | Entered another Factory area 4423 | -6/Factory | Evolved 2 slots: Utility x1, Weapon x1 4915 | -6/Factory | Lost 3 parts (1p2w) 5123 | -6/Factory | First assault squad dispatched 5681 | -6/Factory | Discovered new exit (range 9) 6000 | -6/Factory | Assembled infested ambush trap array 6319 | -6/Factory | System corruption reached 10% 6429 | -6/Factory | Lost 14 parts (1p4n4u5w) 6602 | -6/Factory | Fabricated Hvy. Gauss Cannon (x2) 6622 | -6/Factory | Local fabrication network quarantined 6626 | -6/Factory | Discovered new exit (range 5) 6650 | -6/Factory | Entered Lower Caves 6715 | -6/Lower Caves | Lost 3 parts (3w) 6822 | -6/Lower Caves | Ambushed by wild Derelicts 6851 | -6/Lower Caves | System corruption reached 30% 6890 | -6/Lower Caves | Lost 6 parts (1n4u1w) 7019 | -6/Lower Caves | Attracted the attention of an 0b10 outpost 7074 | -6/Lower Caves | Core integrity fell below 50% 7129 | -6/Lower Caves | Lost 7 parts (3n4u) 7130 | -6/Lower Caves | Core integrity fell below 20% 7160 | -6/Lower Caves | Build established: Mutant 7187 | -6/Lower Caves | Attracted the attention of an 0b10 checkpoint 7192 | -6/Lower Caves | Destroyed by Y-54 Guardian with Gatling Laser Last Messages --------------- 07181_ Destroyed Lgt. Nuclear Core. 07181_ S-27 Virus knocked back. 07181_ Destroyed VTOL Module. 07181_ S-27 Virus system corrupted by crushing effect. 07182_ VTOL Module fries itself beyond repair. 07182_ Hvy. Deuterium Engine destroyed. 07183_ Autogun fries itself beyond repair. 07183_ System corrupted: Hvy. Gauss Cannon jammed. 07185_ System corrupted: Hvy. Gauss Cannon targeting data glitched. 07185_ Destroyed Imp. Heat Sink. 07185_ P-60 Hacker knocked back. 07185_ S-27 Virus destroyed. 07186_ P-60 Hacker destroyed. 07187_ Y-54 Guardian: "INTERCEPTING UNREGISTERED DERELICT." 07187_ Slug penetrates G-50 Soldier. 07187_ G-50 Soldier knocked back. 07191_ VTOL Module fries itself beyond repair. 07191_ System corrupted: Hvy. Gauss Cannon targeting data glitched. 07191_ Slug penetrates Y-54 Guardian. 07192_ Target Analyzer fries itself beyond repair. Map ----- +----------------------------------------------------+ | ?????????????????????????????????????????????????? | | ?????????????????????????????????????????????????? | | ?????????????????????????????????????????????????? | | ?????????????????????????????? ?????????????????? | | ?????????????????????????????? ????????????????? | | ?????????????????????????????? ????????????????? | | ??????????????????????????????? ???????????????? | | ??????????????????????????? ???????????????? | | ??????????????????????????? ? #??????????????? | | ??????????????????????????? ? ####??????????? | | ??????????????????????????? ? ##?????????? | | ??????????????????????????? ??? ####??????? | | ??????????????????????????? ???# #####??? | | ???????????????????????????# ???# ???? | | ???????????????????????????# ???# #?????? | | ???????????????????????????# ???# #?????? | | ???????????????????????????# #????# #?????# | | ???????????????????????????# #???## #????## | | ???????????????????????????# #???# #???## | | ???????????????????????????# #???# #?### | | ???????????????????????????# #???# #?# | | ???????????????????????????# #???## ### | | ???????????????????????????# ##???# #?# | | ??????????????????????????## ###### ### | | ????????????????????????##g! g g | | ????????????????????????#@Y %* # # | | ????????????????????????##### ##### ### | | ????????????????????????????######??# ##?? | | ????????????????????????????????????###### ##??? | | ?????????????????????????????????????????## #???? | | ??????????????????????????????????????????# #???? | | ??????????????????????????????????????????## #???? | | ???????????????????????????????????????????###???? | | ?????????????????????????????????????????????????? | | ?????????????????????????????????????????????????? | | ?????????????????????????????????????????????????? | | ?????????????????????????????????????????????????? | | ?????????????????????????????????????????????????? | | ?????????????????????????????????????????????????? | | ?????????????????????????????????????????????????? | | ?????????????????????????????????????????????????? | | ?????????????????????????????????????????????????? | | ?????????????????????????????????????????????????? | | ?????????????????????????????????????????????????? | | ?????????????????????????????????????????????????? | | ?????????????????????????????????????????????????? | | ?????????????????????????????????????????????????? | | ?????????????????????????????????????????????????? | | ?????????????????????????????????????????????????? | | ?????????????????????????????????????????????????? | +----------------------------------------------------+ Best States ------------- Heat Dissipation 89 Coolant Potential 65 Energy Generation 20 Energy Capacity 310 Matter Stores 300 Matter Capacity 300 Sight Range 22 Robot Scan Range 16 Terrain Scan Density 10 Power Amplification 20 Base Temperature (-) 150 Armor Coverage 675 Resistance: KI 20 Resistance: EM 25 Phase Shifting 5 Evasion (%) 62 Melee Accuracy 8 Recoil Reduction 4 Kinecelleration 30 Salvage Targeting 2 Offensive Hacking 22 Defensive Hacking 10 Item Schematics ----------------- Imp. Medium Treads | -6/Factory | Hacked Hvy. Gauss Cannon | -6/Factory | Hacked Adv. Heat Sink | -6/Factory | Scanalyzed Robot Schematics ------------------ None Fabricated ------------ Hvy. Gauss Cannon | x2 | -6/Factory Alien Tech Used ----------------- None Achievements -------------- None Challenges ------------ None Game ------ Seed CoilRemoteJammer Manual? 0 Play Time 01:08:50 Cumulative 64.0 hours Start 2020.07.21 @ 21:32:00 End 2020.07.21 @ 22:39:39 Sessions 1 Manual Loads 0 Difficulty Rogue Special Mode None Game No. 81 Rogue 81 Adventurer 0 Explorer 0 Win Type - Total 0 Types 0/0/0/0/0/0/0 Lore% 42 Gallery% 55 Achievement% 41 Wizard Run 0 Options --------- ASCII 0 Keyboard 1 Movement Numpad Keybinds 0 Fullscreen 2 Font 18/SmallcapsGlow Map View 76x50 Tactical HUD 1 Map Filters NONE Filters NONE Steam 1 RUN: 13185d9b-6f0a-4454-9969-ebc6661d6301